Workbook

Sheet Math Equation
B2: Use of Mathemetical Equation | M2: Try Yourself
B4: x-value | C4: y-value | D4: y-value (neg) | E4: Radius | M4: x-value | N4: y-value | O4: y-value (neg) | P4: Radius
B5: -5 | C5: =SQRT(E5^2-B5^2) -> 0 | D5: =C5*-1 -> 0 | E5: 5 | M5: -5 | N5: =SQRT(P5^2-M5^2) -> 0 | O5: =N5*-1 -> 0 | P5: 5
B6: =B5+0.1 -> -4.9 | C6: 0.9949874371 | D6: =C6*-1 -> -0.9949874371 | E6: 5 | M6: =M5+0.1 -> -4.9 | N6: 0.9949874371 | O6: =N6*-1 -> -0.9949874371 | P6: 5
B7: =B6+0.1 -> -4.8 | C7: 1.4 | D7: -1.4 | E7: 5 | M7: =M6+0.1 -> -4.8 | N7: 1.4 | O7: -1.4 | P7: 5
B8: -4.7 | C8: 1.705872211 | D8: -1.705872211 | E8: 5 | M8: -4.7 | N8: 1.705872211 | O8: -1.705872211 | P8: 5
B9: -4.6 | C9: 1.959591794 | D9: -1.959591794 | E9: 5 | M9: -4.6 | N9: 1.959591794 | O9: -1.959591794 | P9: 5
B10: -4.5 | C10: 2.179449472 | D10: -2.179449472 | E10: 5 | M10: -4.5 | N10: 2.179449472 | O10: -2.179449472 | P10: 5
B11: -4.4 | C11: 2.374868417 | D11: -2.374868417 | E11: 5 | M11: -4.4 | N11: 2.374868417 | O11: -2.374868417 | P11: 5
B12: -4.3 | C12: 2.551470164 | D12: -2.551470164 | E12: 5 | M12: -4.3 | N12: 2.551470164 | O12: -2.551470164 | P12: 5
B13: -4.2 | C13: 2.712931993 | D13: -2.712931993 | E13: 5 | M13: -4.2 | N13: 2.712931993 | O13: -2.712931993 | P13: 5
B14: -4.1 | C14: 2.861817604 | D14: -2.861817604 | E14: 5 | M14: -4.1 | N14: 2.861817604 | O14: -2.861817604 | P14: 5
B15: -4 | C15: 3 | D15: -3 | E15: 5 | M15: -4 | N15: 3 | O15: -3 | P15: 5
B16: -3.9 | C16: =SQRT(E16^2-B16^2) -> 3.128897569 | D16: -3.128897569 | E16: 5 | M16: -3.9 | N16: =SQRT(P16^2-M16^2) -> 3.128897569 | O16: -3.128897569 | P16: 5
B17: -3.8 | C17: 3.249615362 | D17: -3.249615362 | E17: 5 | M17: -3.8 | N17: 3.249615362 | O17: -3.249615362 | P17: 5
B18: -3.7 | C18: 3.363034344 | D18: -3.363034344 | E18: 5 | M18: -3.7 | N18: 3.363034344 | O18: -3.363034344 | P18: 5
B19: -3.6 | C19: 3.469870315 | D19: -3.469870315 | E19: 5 | M19: -3.6 | N19: 3.469870315 | O19: -3.469870315 | P19: 5
B20: -3.5 | C20: 3.570714214 | D20: -3.570714214 | E20: 5 | M20: -3.5 | N20: 3.570714214 | O20: -3.570714214 | P20: 5
B21: -3.4 | C21: 3.666060556 | D21: -3.666060556 | E21: 5 | M21: -3.4 | N21: 3.666060556 | O21: -3.666060556 | P21: 5
B22: -3.3 | C22: 3.756327994 | D22: -3.756327994 | E22: 5 | M22: -3.3 | N22: 3.756327994 | O22: -3.756327994 | P22: 5
B23: -3.2 | C23: 3.841874542 | D23: -3.841874542 | E23: 5 | M23: -3.2 | N23: 3.841874542 | O23: -3.841874542 | P23: 5
B24: -3.1 | C24: 3.923009049 | D24: -3.923009049 | E24: 5 | M24: -3.1 | N24: 3.923009049 | O24: -3.923009049 | P24: 5
B25: -3 | C25: 4 | D25: -4 | E25: 5 | M25: -3 | N25: 4 | O25: -4 | P25: 5
B26: -2.9 | C26: 4.073082371 | D26: -4.073082371 | E26: 5 | M26: -2.9 | N26: 4.073082371 | O26: -4.073082371 | P26: 5
B27: -2.8 | C27: 4.142463035 | D27: -4.142463035 | E27: 5 | M27: -2.8 | N27: 4.142463035 | O27: -4.142463035 | P27: 5
B28: -2.7 | C28: 4.208325083 | D28: -4.208325083 | E28: 5 | M28: -2.7 | N28: 4.208325083 | O28: -4.208325083 | P28: 5
B29: -2.6 | C29: 4.270831301 | D29: -4.270831301 | E29: 5 | M29: -2.6 | N29: 4.270831301 | O29: -4.270831301 | P29: 5
B30: -2.5 | C30: 4.330127019 | D30: -4.330127019 | E30: 5 | M30: -2.5 | N30: 4.330127019 | O30: -4.330127019 | P30: 5
B31: -2.4 | C31: 4.38634244 | D31: -4.38634244 | E31: 5 | M31: -2.4 | N31: 4.38634244 | O31: -4.38634244 | P31: 5
B32: -2.3 | C32: 4.439594576 | D32: -4.439594576 | E32: 5 | M32: -2.3 | N32: 4.439594576 | O32: -4.439594576 | P32: 5
B33: -2.2 | C33: 4.489988864 | D33: -4.489988864 | E33: 5 | M33: -2.2 | N33: 4.489988864 | O33: -4.489988864 | P33: 5
B34: -2.1 | C34: 4.537620522 | D34: -4.537620522 | E34: 5 | M34: -2.1 | N34: 4.537620522 | O34: -4.537620522 | P34: 5
B35: -2 | C35: 4.582575695 | D35: -4.582575695 | E35: 5 | M35: -2 | N35: 4.582575695 | O35: -4.582575695 | P35: 5
B36: -1.9 | C36: 4.624932432 | D36: -4.624932432 | E36: 5 | M36: -1.9 | N36: 4.624932432 | O36: -4.624932432 | P36: 5
B37: -1.8 | C37: 4.664761516 | D37: -4.664761516 | E37: 5 | M37: -1.8 | N37: 4.664761516 | O37: -4.664761516 | P37: 5
B38: -1.7 | C38: 4.702127178 | D38: -4.702127178 | E38: 5 | M38: -1.7 | N38: 4.702127178 | O38: -4.702127178 | P38: 5
B39: -1.6 | C39: 4.737087713 | D39: -4.737087713 | E39: 5 | M39: -1.6 | N39: 4.737087713 | O39: -4.737087713 | P39: 5
B40: -1.5 | C40: 4.769696007 | D40: -4.769696007 | E40: 5 | M40: -1.5 | N40: 4.769696007 | O40: -4.769696007 | P40: 5
B41: -1.4 | C41: 4.8 | D41: -4.8 | E41: 5 | M41: -1.4 | N41: 4.8 | O41: -4.8 | P41: 5
B42: -1.3 | C42: 4.828043082 | D42: -4.828043082 | E42: 5 | M42: -1.3 | N42: 4.828043082 | O42: -4.828043082 | P42: 5
B43: -1.2 | C43: 4.85386444 | D43: -4.85386444 | E43: 5 | M43: -1.2 | N43: 4.85386444 | O43: -4.85386444 | P43: 5
B44: -1.1 | C44: 4.877499359 | D44: -4.877499359 | E44: 5 | M44: -1.1 | N44: 4.877499359 | O44: -4.877499359 | P44: 5
B45: -1 | C45: 4.898979486 | D45: -4.898979486 | E45: 5 | M45: -1 | N45: 4.898979486 | O45: -4.898979486 | P45: 5
B46: -0.9 | C46: 4.918333051 | D46: -4.918333051 | E46: 5 | M46: -0.9 | N46: 4.918333051 | O46: -4.918333051 | P46: 5
B47: -0.8 | C47: 4.935585072 | D47: -4.935585072 | E47: 5 | M47: -0.8 | N47: 4.935585072 | O47: -4.935585072 | P47: 5
B48: -0.7 | C48: 4.950757518 | D48: -4.950757518 | E48: 5 | M48: -0.7 | N48: 4.950757518 | O48: -4.950757518 | P48: 5
B49: -0.6 | C49: 4.963869458 | D49: -4.963869458 | E49: 5 | M49: -0.6 | N49: 4.963869458 | O49: -4.963869458 | P49: 5
B50: -0.5 | C50: 4.974937186 | D50: -4.974937186 | E50: 5 | M50: -0.5 | N50: 4.974937186 | O50: -4.974937186 | P50: 5
B51: -0.4 | C51: 4.983974318 | D51: -4.983974318 | E51: 5 | M51: -0.4 | N51: 4.983974318 | O51: -4.983974318 | P51: 5
B52: -0.3 | C52: 4.990991885 | D52: -4.990991885 | E52: 5 | M52: -0.3 | N52: 4.990991885 | O52: -4.990991885 | P52: 5
B53: -0.2 | C53: 4.995998399 | D53: -4.995998399 | E53: 5 | M53: -0.2 | N53: 4.995998399 | O53: -4.995998399 | P53: 5
B54: -0.1 | C54: 4.9989999 | D54: -4.9989999 | E54: 5 | M54: -0.1 | N54: 4.9989999 | O54: -4.9989999 | P54: 5
B55: -1.026956298e-15 | C55: 5 | D55: -5 | E55: 5 | M55: -1.026956298e-15 | N55: 5 | O55: -5 | P55: 5
B56: 0.1 | C56: 4.9989999 | D56: -4.9989999 | E56: 5 | M56: 0.1 | N56: 4.9989999 | O56: -4.9989999 | P56: 5
B57: 0.2 | C57: 4.995998399 | D57: -4.995998399 | E57: 5 | M57: 0.2 | N57: 4.995998399 | O57: -4.995998399 | P57: 5
B58: 0.3 | C58: 4.990991885 | D58: -4.990991885 | E58: 5 | M58: 0.3 | N58: 4.990991885 | O58: -4.990991885 | P58: 5
B59: 0.4 | C59: 4.983974318 | D59: -4.983974318 | E59: 5 | M59: 0.4 | N59: 4.983974318 | O59: -4.983974318 | P59: 5
B60: 0.5 | C60: 4.974937186 | D60: -4.974937186 | E60: 5 | M60: 0.5 | N60: 4.974937186 | O60: -4.974937186 | P60: 5
B61: 0.6 | C61: 4.963869458 | D61: -4.963869458 | E61: 5 | M61: 0.6 | N61: 4.963869458 | O61: -4.963869458 | P61: 5
B62: 0.7 | C62: 4.950757518 | D62: -4.950757518 | E62: 5 | M62: 0.7 | N62: 4.950757518 | O62: -4.950757518 | P62: 5
B63: 0.8 | C63: 4.935585072 | D63: -4.935585072 | E63: 5 | M63: 0.8 | N63: 4.935585072 | O63: -4.935585072 | P63: 5
B64: 0.9 | C64: 4.918333051 | D64: -4.918333051 | E64: 5 | M64: 0.9 | N64: 4.918333051 | O64: -4.918333051 | P64: 5
B65: 1 | C65: 4.898979486 | D65: -4.898979486 | E65: 5 | M65: 1 | N65: 4.898979486 | O65: -4.898979486 | P65: 5
B66: 1.1 | C66: 4.877499359 | D66: -4.877499359 | E66: 5 | M66: 1.1 | N66: 4.877499359 | O66: -4.877499359 | P66: 5
B67: 1.2 | C67: 4.85386444 | D67: -4.85386444 | E67: 5 | M67: 1.2 | N67: 4.85386444 | O67: -4.85386444 | P67: 5
B68: 1.3 | C68: 4.828043082 | D68: -4.828043082 | E68: 5 | M68: 1.3 | N68: 4.828043082 | O68: -4.828043082 | P68: 5
B69: 1.4 | C69: 4.8 | D69: -4.8 | E69: 5 | M69: 1.4 | N69: 4.8 | O69: -4.8 | P69: 5
B70: 1.5 | C70: 4.769696007 | D70: =C70*-1 -> -4.769696007 | E70: 5 | M70: 1.5 | N70: 4.769696007 | O70: =N70*-1 -> -4.769696007 | P70: 5
B71: =B70+0.1 -> 1.6 | C71: 4.737087713 | D71: -4.737087713 | E71: 5 | M71: =M70+0.1 -> 1.6 | N71: 4.737087713 | O71: -4.737087713 | P71: 5
B72: 1.7 | C72: 4.702127178 | D72: -4.702127178 | E72: 5 | M72: 1.7 | N72: 4.702127178 | O72: -4.702127178 | P72: 5
B73: 1.8 | C73: 4.664761516 | D73: -4.664761516 | E73: 5 | M73: 1.8 | N73: 4.664761516 | O73: -4.664761516 | P73: 5
B74: 1.9 | C74: 4.624932432 | D74: -4.624932432 | E74: 5 | M74: 1.9 | N74: 4.624932432 | O74: -4.624932432 | P74: 5
B75: 2 | C75: 4.582575695 | D75: -4.582575695 | E75: 5 | M75: 2 | N75: 4.582575695 | O75: -4.582575695 | P75: 5
B76: 2.1 | C76: 4.537620522 | D76: -4.537620522 | E76: 5 | M76: 2.1 | N76: 4.537620522 | O76: -4.537620522 | P76: 5
B77: 2.2 | C77: 4.489988864 | D77: -4.489988864 | E77: 5 | M77: 2.2 | N77: 4.489988864 | O77: -4.489988864 | P77: 5
B78: 2.3 | C78: 4.439594576 | D78: -4.439594576 | E78: 5 | M78: 2.3 | N78: 4.439594576 | O78: -4.439594576 | P78: 5
B79: 2.4 | C79: 4.38634244 | D79: -4.38634244 | E79: 5 | M79: 2.4 | N79: 4.38634244 | O79: -4.38634244 | P79: 5
B80: 2.5 | C80: =SQRT(E80^2-B80^2) -> 4.330127019 | D80: -4.330127019 | E80: 5 | M80: 2.5 | N80: =SQRT(P80^2-M80^2) -> 4.330127019 | O80: -4.330127019 | P80: 5
B81: 2.6 | C81: 4.270831301 | D81: -4.270831301 | E81: 5 | M81: 2.6 | N81: 4.270831301 | O81: -4.270831301 | P81: 5
B82: 2.7 | C82: 4.208325083 | D82: -4.208325083 | E82: 5 | M82: 2.7 | N82: 4.208325083 | O82: -4.208325083 | P82: 5
B83: 2.8 | C83: 4.142463035 | D83: -4.142463035 | E83: 5 | M83: 2.8 | N83: 4.142463035 | O83: -4.142463035 | P83: 5
B84: 2.9 | C84: 4.073082371 | D84: -4.073082371 | E84: 5 | M84: 2.9 | N84: 4.073082371 | O84: -4.073082371 | P84: 5
B85: 3 | C85: 4 | D85: -4 | E85: 5 | M85: 3 | N85: 4 | O85: -4 | P85: 5
B86: 3.1 | C86: 3.923009049 | D86: -3.923009049 | E86: 5 | M86: 3.1 | N86: 3.923009049 | O86: -3.923009049 | P86: 5
B87: 3.2 | C87: 3.841874542 | D87: -3.841874542 | E87: 5 | M87: 3.2 | N87: 3.841874542 | O87: -3.841874542 | P87: 5
B88: 3.3 | C88: 3.756327994 | D88: -3.756327994 | E88: 5 | M88: 3.3 | N88: 3.756327994 | O88: -3.756327994 | P88: 5
B89: 3.4 | C89: 3.666060556 | D89: -3.666060556 | E89: 5 | M89: 3.4 | N89: 3.666060556 | O89: -3.666060556 | P89: 5
B90: 3.5 | C90: 3.570714214 | D90: -3.570714214 | E90: 5 | M90: 3.5 | N90: 3.570714214 | O90: -3.570714214 | P90: 5
B91: 3.6 | C91: 3.469870315 | D91: -3.469870315 | E91: 5 | M91: 3.6 | N91: 3.469870315 | O91: -3.469870315 | P91: 5
B92: 3.7 | C92: 3.363034344 | D92: -3.363034344 | E92: 5 | M92: 3.7 | N92: 3.363034344 | O92: -3.363034344 | P92: 5
B93: 3.8 | C93: 3.249615362 | D93: -3.249615362 | E93: 5 | M93: 3.8 | N93: 3.249615362 | O93: -3.249615362 | P93: 5
B94: 3.9 | C94: 3.128897569 | D94: -3.128897569 | E94: 5 | M94: 3.9 | N94: 3.128897569 | O94: -3.128897569 | P94: 5
B95: 4 | C95: 3 | D95: -3 | E95: 5 | M95: 4 | N95: 3 | O95: -3 | P95: 5
B96: 4.1 | C96: 2.861817604 | D96: -2.861817604 | E96: 5 | M96: 4.1 | N96: 2.861817604 | O96: -2.861817604 | P96: 5
B97: 4.2 | C97: 2.712931993 | D97: -2.712931993 | E97: 5 | M97: 4.2 | N97: 2.712931993 | O97: -2.712931993 | P97: 5
B98: 4.3 | C98: 2.551470164 | D98: -2.551470164 | E98: 5 | M98: 4.3 | N98: 2.551470164 | O98: -2.551470164 | P98: 5
B99: 4.4 | C99: 2.374868417 | D99: -2.374868417 | E99: 5 | M99: 4.4 | N99: 2.374868417 | O99: -2.374868417 | P99: 5
B100: 4.5 | C100: 2.179449472 | D100: -2.179449472 | E100: 5 | M100: 4.5 | N100: 2.179449472 | O100: -2.179449472 | P100: 5
B101: 4.6 | C101: 1.959591794 | D101: -1.959591794 | E101: 5 | M101: 4.6 | N101: 1.959591794 | O101: -1.959591794 | P101: 5
B102: 4.7 | C102: 1.705872211 | D102: -1.705872211 | E102: 5 | M102: 4.7 | N102: 1.705872211 | O102: -1.705872211 | P102: 5
B103: =B102+0.1 -> 4.8 | C103: 1.4 | D103: -1.4 | E103: 5 | M103: =M102+0.1 -> 4.8 | N103: 1.4 | O103: -1.4 | P103: 5
B104: =B103+0.1 -> 4.9 | C104: 0.9949874371 | D104: -0.9949874371 | E104: 5 | M104: =M103+0.1 -> 4.9 | N104: 0.9949874371 | O104: -0.9949874371 | P104: 5
B105: 5 | C105: 1.68587394e-07 | D105: -1.68587394e-07 | E105: 5 | M105: 5 | N105: 1.68587394e-07 | O105: -1.68587394e-07 | P105: 5

Sheet Sin & Cos
B2: Use of SIN & COS Functions | L2: Try Yourself
B4: Angle | C4: x-value | D4: y-value | E4: Radius | L4: Angle | M4: x-value | N4: y-value | O4: Radius
B5: 0 | C5: =E5*COS(RADIANS(B5)) -> 10 | D5: =E5*SIN(RADIANS(B5)) -> 0 | E5: 10 | L5: 0 | M5: =O5*COS(RADIANS(L5)) -> 10 | N5: =O5*SIN(RADIANS(L5)) -> 0 | O5: 10
B6: 30 | C6: =E6*COS(RADIANS(B6)) -> 8.660254038 | D6: =E6*SIN(RADIANS(B6)) -> 5 | E6: 10 | L6: 30 | M6: =O6*COS(RADIANS(L6)) -> 8.660254038 | N6: =O6*SIN(RADIANS(L6)) -> 5 | O6: 10
B7: =30+B6 -> 60 | C7: 5 | D7: 8.660254038 | E7: 10 | L7: =30+L6 -> 60 | M7: 5 | N7: 8.660254038 | O7: 10
B8: =30+B7 -> 90 | C8: 6.125742275e-16 | D8: 10 | E8: 10 | L8: =30+L7 -> 90 | M8: 6.125742275e-16 | N8: 10 | O8: 10
B9: 120 | C9: -5 | D9: 8.660254038 | E9: 10 | L9: 120 | M9: -5 | N9: 8.660254038 | O9: 10
B10: 150 | C10: -8.660254038 | D10: 5 | E10: 10 | L10: 150 | M10: -8.660254038 | N10: 5 | O10: 10
B11: 180 | C11: -10 | D11: 1.225148455e-15 | E11: 10 | L11: 180 | M11: -10 | N11: 1.225148455e-15 | O11: 10
B12: 210 | C12: -8.660254038 | D12: -5 | E12: 10 | L12: 210 | M12: -8.660254038 | N12: -5 | O12: 10
B13: 240 | C13: -5 | D13: -8.660254038 | E13: 10 | L13: 240 | M13: -5 | N13: -8.660254038 | O13: 10
B14: 270 | C14: -1.837722682e-15 | D14: -10 | E14: 10 | L14: 270 | M14: -1.837722682e-15 | N14: -10 | O14: 10
B15: 300 | C15: 5 | D15: -8.660254038 | E15: 10 | L15: 300 | M15: 5 | N15: -8.660254038 | O15: 10
B16: 330 | C16: 8.660254038 | D16: -5 | E16: 10 | L16: 330 | M16: 8.660254038 | N16: -5 | O16: 10
B17: 360 | C17: 10 | D17: -2.45029691e-15 | E17: 10 | L17: 360 | M17: 10 | N17: -2.45029691e-15 | O17: 10

Sheet Shape Tool
B2: Use of Shape Tool | G2: Try Yourself
B4: Address | C4: Zip Code | G4: Address | H4: Zip Code
B5: 328 Chauncey Street, Brooklyn | C5: 11233 | G5: 328 Chauncey Street, Brooklyn | H5: 11233
B6: 1049 Park Avenue, New York | C6: 10028 | G6: 1049 Park Avenue, New York | H6: 10028
B7: 69 Park Street, Pittsford | C7: 5763 | G7: 69 Park Street, Pittsford | H7: 5763
B8: 1600 Pennsylvania Avenue, Washington | C8: 20500 | G8: 1600 Pennsylvania Avenue, Washington | H8: 20500
B9: Laughing J Ranch, Phippsburg | C9: 15213 | G9: Laughing J Ranch, Phippsburg | H9: 15213

Sheet VBA
B2: Use of Excel VBA | L2: Try Yourself
B4: x-value | C4: y-value | D4: y-value (neg) | E4: Radius | L4: x-value | M4: y-value | N4: y-value (neg) | O4: Radius
B5: -5 | C5: =SQRT(E5^2-B5^2) -> 0 | D5: =C5*-1 -> 0 | E5: 5 | L5: -5 | M5: =SQRT(O5^2-L5^2) -> 0 | N5: =M5*-1 -> 0 | O5: 5
B6: =B5+1 -> -4 | C6: 3 | D6: =C6*-1 -> -3 | E6: 5 | L6: =L5+1 -> -4 | M6: 3 | N6: =M6*-1 -> -3 | O6: 5
B7: =B6+1 -> -3 | C7: 4 | D7: -4 | E7: 5 | L7: =L6+1 -> -3 | M7: 4 | N7: -4 | O7: 5
B8: -2 | C8: 4.582575695 | D8: -4.582575695 | E8: 5 | L8: -2 | M8: 4.582575695 | N8: -4.582575695 | O8: 5
B9: -1 | C9: 4.898979486 | D9: -4.898979486 | E9: 5 | L9: -1 | M9: 4.898979486 | N9: -4.898979486 | O9: 5
B10: 0 | C10: 5 | D10: -5 | E10: 5 | L10: 0 | M10: 5 | N10: -5 | O10: 5
B11: 1 | C11: 4.898979486 | D11: -4.898979486 | E11: 5 | L11: 1 | M11: 4.898979486 | N11: -4.898979486 | O11: 5
B12: 2 | C12: 4.582575695 | D12: -4.582575695 | E12: 5 | L12: 2 | M12: 4.582575695 | N12: -4.582575695 | O12: 5
B13: 3 | C13: 4 | D13: -4 | E13: 5 | L13: 3 | M13: 4 | N13: -4 | O13: 5
B14: 4 | C14: 3 | D14: -3 | E14: 5 | L14: 4 | M14: 3 | N14: -3 | O14: 5
B15: =B14+1 -> 5 | C15: 0 | D15: 0 | E15: 5 | L15: =L14+1 -> 5 | M15: 0 | N15: 0 | O15: 5
